Workbook

Sheet Wksh 1 - Market Experience
A1: Press TAB and directional arrow keys to read through the document. If macros are disabled, press and hold the ALT key and press the F, then I, and then N key. After that, select the Enable All Content option by pressing enter. (note that you can also press the C key to select "Enable All Content") Instructions can be found in cells K1 through K4. If screen reader fails to announce a cell after performing a dropdown selection, please press F2 and then ESC to force the screen reader to resume. | B1: Unified Rate Review v6.0 [assistive technology users, please reference cell A1 for instructions] | K1: To add a product to Worksheet 2 - Plan Product Info, select the Add Product button or Ctrl + Shift + P.
K2: To add a plan to Worksheet 2 - Plan Product Info, select the Add Plan button or Ctrl + Shift + L.
B3: Company Legal Name: | C3: CareSource Kentucky Co. | K3: To validate, select the Validate button or Ctrl + Shift + I.
B4: HIOS Issuer ID: | C4: 45636 | D4: State: | E4: KY | K4: To finalize, select the Finalize button or Ctrl + Shift + F.
B5: Effective Date of Rate Change(s): | C5: =MAX('Wksh 2 - Plan Product Info'!E19:Z19) -> 2024-01-01 | D5: Market: | E5: Individual
B8: Market Level Calculations (Same for all Plans)
B11: Section I: Experience Period Data
B12: Experience Period: | D12: 2022-01-01 | E12: to | F12: =EDATE(D12,12)-1 -> 2022-12-31
E13: Total | F13: PMPM
B14: Allowed Claims | E14: 252410948.9 | F14: =E14/E19 -> 604.6350523
B15: Reinsurance | E15: 0 | F15: =E15/E19 -> 0
B16: Incurred Claims in Experience Period | E16: 203286215.8 | F16: =E16/E19 -> 486.9597465
B17: Risk Adjustment | E17: 3893286.675 | F17: =E17/E19 -> 9.326131067
B18: Experience Period Premium | E18: 236471242.7 | F18: =E18/E19 -> 566.452457
B19: Experience Period Member Months | E19: ='Wksh 2 - Plan Product Info'!D33 -> 417460
B21: Section II: Projections
D22: Year 1 Trend | F22: Year 2 Trend
B23: Benefit Category | C23: Experience Period Index Rate PMPM | D23: Cost | E23: Utilization | F23: Cost | G23: Utilization | H23: Trended EHB Allowed Claims PMPM
B24: Inpatient Hospital | C24: 88.53228695 | D24: 1.047254972 | E24: 1.008354541 | F24: 1.047254972 | G24: 1.008354541 | H24: =PRODUCT(C24:G24) -> 98.72634544
B25: Outpatient Hospital | C25: 210.4938184 | D25: 1.083522947 | E25: 1.006648117 | F25: 1.083522947 | G25: 1.006648117 | H25: 250.4211141
B26: Professional | C26: 199.3463455 | D26: 1.027468545 | E26: 1 | F26: 1.027468545 | G26: 1 | H26: 210.4482647
B27: Other Medical | C27: 16.1317238 | D27: 1.027468545 | E27: 1 | F27: 1.027468545 | G27: 1 | H27: 17.03012549
B28: Capitation | C28: 0 | D28: 1 | E28: 1 | F28: 1 | G28: 1 | H28: 0
B29: Prescription Drug | C29: 90.12942934 | D29: 1.055820702 | E29: 1.021070144 | F29: 1.055820702 | G29: 1.021070144 | H29: 104.7509868
B30: Total | C30: =SUM(C24:C29) -> 604.633604 | H30: =SUM(H24:H29) -> 681.3768366
B32: Morbidity Adjustment | F32: 1.041634868
B33: Demographic Shift | F33: 1.006807496
B34: Plan Design Changes | F34: 1.016477714
B35: Other | F35: 0.9777392717
B36: Adjusted Trended EHB Allowed Claims PMPM for | D36: =IF(C5<>"",C5,"") -> 2024-01-01 | F36: =H30*PRODUCT(F32:F35) -> 710.1829405
B38: Manual EHB Allowed Claims PMPM | F38: 0
B39: Applied Credibility % | F39: 1
G41: Projected Period Totals
B42: Projected Index Rate for | D42: =IF(C5<>"",C5,"") -> 2024-01-01 | F42: =ROUND(F39*F36+(1-F39)*F38,2) -> 710.18 | G42: =F42*F48 -> 220154379.6
B43: Reinsurance | F43: 0 | G43: =F43*F48 -> 0
B44: Risk Adjustment Payment/Charge | F44: 10.440227 | G44: =F44*F48 -> 3236449.489
B45: Exchange User Fees | F45: 0 | G45: =F45*F46*F48 -> 0
B46: Market Adjusted Index Rate | F46: =(F42-F43-F44)/(1-F45) -> 699.739773 | G46: =F46*F48 -> 216917930.2
B48: Projected Member Months | F48: ='Wksh 2 - Plan Product Info'!D73 -> 309998
B50: Information Not Releasable to the Public Unless Authorized by Law: This information has not been publically disclosed and may be privileged and confidential. It is for internal government use only and must not be disseminated, distributed, or copied to persons not authorized to receive the information. Unauthorized disclosure may result in prosecution to the full extent of the law.

Sheet Wksh 2 - Plan Product Info
A1: Press TAB and directional arrow keys to read through the document. If macros are disabled, press and hold the ALT key and press the F, then I, and then N key. After that, select the Enable All Content option by pressing enter. (note that you can also press the C key to select "Enable All Content") Instructions can be found in cells P1 through P6. If screen reader fails to announce a cell after performing a dropdown selection, please press F2 and then ESC to force the screen reader to resume. | C1: Product-Plan Data Collection [assistive technology users, please reference cell A1 for instructions] | P1: To add a product to Worksheet 2 - Plan Product Info, select the Add Product button or Ctrl + Shift + P.
P2: To add a plan to Worksheet 2 - Plan Product Info, select the Add Plan button or Ctrl + Shift + L.
C3: Company Legal Name: | D3: =IF('Wksh 1 - Market Experience'!C3<>"", 'Wksh 1 - Market Experience'!C3,"") -> CareSource Kentucky Co. | P3: To validate, select the Validate button or Ctrl + Shift + I.
C4: HIOS Issuer ID: | D4: =IF('Wksh 1 - Market Experience'!C4<>"", 'Wksh 1 - Market Experience'!C4,"") -> 45636 | E4: State: | F4: =IF('Wksh 1 - Market Experience'!E4<>"",'Wksh 1 - Market Experience'!E4,"") -> KY | P4: To finalize, select the Finalize button or Ctrl + Shift + F.
C5: Effective Date of Rate Change(s): | D5: =IF('Wksh 1 - Market Experience'!C5<>"", 'Wksh 1 - Market Experience'!C5,"") -> 2024-01-01 | E5: Market: | F5: =IF('Wksh 1 - Market Experience'!E5<>"",'Wksh 1 - Market Experience'!E5,"") -> Individual | P5: To remove a product, navigate to the corresponding Product Name/Product ID field and select the Remove Product button or Ctrl + Shift + Q.
P6: To remove a plan, navigate to the corresponding Plan Name/Plan ID field and select the Remove Plan button or Ctrl + Shift + A.
C7: Product/Plan Level Calculations
B9: Field # | C9: Section I: General Product and Plan Information
B10: 1.1 | C10: Product Name | E10: CareSource Marketplace | Q10: CareSource Marketplace Dental, Vision, & Fitness
B11: 1.2 | C11: Product ID | E11: 45636KY001 | Q11: 45636KY002
B12: 1.3 | C12: Plan Name | E12: CareSource Marketplace Catastrophic Core | F12: CareSource Marketplace Bronze HSA Eligible | G12: CareSource Marketplace Low Premium Silver | H12: CareSource Marketplace Bronze First | I12: CareSource Marketplace Core Gold | J12: CareSource Marketplace Core Silver | K12: CareSource Marketplace Low Deductible Silver | L12: CareSource Marketplace Bronze | M12: CareSource Marketplace Diabetes Silver | N12: CareSource Marketplace Diabetes Gold | O12: CareSource Marketplace Silver | P12: CareSource Marketplace Gold | Q12: CareSource Marketplace Low Premium Silver Dental, Vision, & Fitness | R12: CareSource Marketplace Core Gold Dental, Vision, & Fitness | S12: CareSource Marketplace Core Silver Dental, Vision, & Fitness | T12: CareSource Marketplace Bronze First Dental, Vision, & Fitness | U12: CareSource Marketplace Low Deductible Silver Dental, Vision, & Fitness | V12: CareSource Marketplace Bronze Dental, Vision, & Fitness | W12: CareSource Marketplace Diabetes Silver Dental, Vision, & Fitness | X12: CareSource Marketplace Diabetes Gold Dental, Vision, & Fitness | Y12: CareSource Marketplace Silver Dental, Vision, & Fitness | Z12: CareSource Marketplace Gold Dental, Vision, & Fitness
B13: 1.4 | C13: Plan ID (Standard Component ID) | E13: 45636KY0010010 | F13: 45636KY0010013 | G13: 45636KY0010014 | H13: 45636KY0010017 | I13: 45636KY0010029 | J13: 45636KY0010030 | K13: 45636KY0010031 | L13: 45636KY0010032 | M13: 45636KY0010034 | N13: 45636KY0010035 | O13: 45636KY0010037 | P13: 45636KY0010038 | Q13: 45636KY0020014 | R13: 45636KY0020015 | S13: 45636KY0020016 | T13: 45636KY0020017 | U13: 45636KY0020031 | V13: 45636KY0020032 | W13: 45636KY0020034 | X13: 45636KY0020035 | Y13: 45636KY0020037 | Z13: 45636KY0020038
B14: 1.5 | C14: Metal | E14: Catastrophic | F14: Bronze | G14: Silver | H14: Bronze | I14: Gold | J14: Silver | K14: Silver | L14: Bronze | M14: Silver | N14: Gold | O14: Silver | P14: Gold | Q14: Silver | R14: Gold | S14: Silver | T14: Bronze | U14: Silver | V14: Bronze | W14: Silver | X14: Gold | Y14: Silver | Z14: Gold
B15: 1.6 | C15: AV Metal Value | E15: 0.625 | F15: 0.643 | G15: 0.7153 | H15: 0.6439 | I15: 0.7852 | J15: 0.7181 | K15: 0.715 | L15: 0.599 | M15: 0.7155 | N15: 0.8189 | O15: 0.7001 | P15: 0.7802 | Q15: 0.7153 | R15: 0.7852 | S15: 0.7181 | T15: 0.6439 | U15: 0.715 | V15: 0.599 | W15: 0.7155 | X15: 0.8189 | Y15: 0.7001 | Z15: 0.7802
B16: 1.7 | C16: Plan Category | E16: Terminated | F16: Terminated | G16: Renewing | H16: Renewing | I16: Renewing | J16: Renewing | K16: Terminated | L16: Terminated | M16: New | N16: New | O16: New | P16: New | Q16: Renewing | R16: Renewing | S16: Renewing | T16: Renewing | U16: Terminated | V16: Terminated | W16: New | X16: New | Y16: New | Z16: New
B17: 1.8 | C17: Plan Type | E17: HMO | F17: HMO | G17: HMO | H17: HMO | I17: HMO | J17: HMO | K17: HMO | L17: HMO | M17: HMO | N17: HMO | O17: HMO | P17: HMO | Q17: HMO | R17: HMO | S17: HMO | T17: HMO | U17: HMO | V17: HMO | W17: HMO | X17: HMO | Y17: HMO | Z17: HMO
B18: 1.9 | C18: Exchange Plan? | E18: No | F18: No | G18: Yes | H18: Yes | I18: Yes | J18: Yes | K18: No | L18: No | M18: Yes | N18: Yes | O18: Yes | P18: Yes | Q18: Yes | R18: Yes | S18: Yes | T18: Yes | U18: No | V18: No | W18: Yes | X18: Yes | Y18: Yes | Z18: Yes
B19: 1.10 | C19: Effective Date of Proposed Rates | E19: 2024-01-01 | F19: 2024-01-01 | G19: 2024-01-01 | H19: 2024-01-01 | I19: 2024-01-01 | J19: 2024-01-01 | K19: 2024-01-01 | L19: 2024-01-01 | M19: 2024-01-01 | N19: 2024-01-01 | O19: 2024-01-01 | P19: 2024-01-01 | Q19: 2024-01-01 | R19: 2024-01-01 | S19: 2024-01-01 | T19: 2024-01-01 | U19: 2024-01-01 | V19: 2024-01-01 | W19: 2024-01-01 | X19: 2024-01-01 | Y19: 2024-01-01 | Z19: 2024-01-01
B20: 1.11 | C20: Cumulative Rate Change % (over 12 mos prior) | E20: 0 | F20: 0 | G20: 0.05499262634 | H20: 0.1739990978 | I20: 0.08574886257 | J20: 0.05094508607 | K20: 0 | L20: 0 | M20: 0 | N20: 0 | O20: 0 | P20: 0 | Q20: 0.05185423745 | R20: 0.08206841083 | S20: 0.0478997525 | T20: 0.1681235002 | U20: 0 | V20: 0 | W20: 0 | X20: 0 | Y20: 0 | Z20: 0
B21: 1.12 | C21: Product Rate Increase % | E21: =IF(SUMPRODUCT((E16:P16="Renewing")*((E14:P14="Platinum")+(E14:P14="Gold")+(E14:P14="Silver")+(E14:P14="Bronze")+(E14:P14="Catastrophic")))=0, 0, ROUND(ROUND(SUMPRODUCT(1+E20:P20,E34:P34,E35:P35,--(E16:P16="Renewing")*((E14:P14="Platinum")+(E14:P14="Gold")+(E14:P14="Silver")+(E14:P14="Bronze")+(E14:P14="Catastrophic")))/SUMPRODUCT(E34:P34,E35:P35,--(E16:P16="Renewing")*((E14:P14="Platinum")+(E14:P14="Gold")+(E14:P14="Silver")+(E14:P14="Bronze")+(E14:P14="Catastrophic"))), 4)-1, 4)) -> 0.1171 | Q21: =IF(SUMPRODUCT((Q16:Z16="Renewing")*((Q14:Z14="Platinum")+(Q14:Z14="Gold")+(Q14:Z14="Silver")+(Q14:Z14="Bronze")+(Q14:Z14="Catastrophic")))=0, 0, ROUND(ROUND(SUMPRODUCT(1+Q20:Z20,Q34:Z34,Q35:Z35,--(Q16:Z16="Renewing")*((Q14:Z14="Platinum")+(Q14:Z14="Gold")+(Q14:Z14="Silver")+(Q14:Z14="Bronze")+(Q14:Z14="Catastrophic")))/SUMPRODUCT(Q34:Z34,Q35:Z35,--(Q16:Z16="Renewing")*((Q14:Z14="Platinum")+(Q14:Z14="Gold")+(Q14:Z14="Silver")+(Q14:Z14="Bronze")+(Q14:Z14="Catastrophic"))), 4)-1, 4)) -> 0.1059
B22: 1.13 | C22: Submission Level Rate Increase % | E22: =IF(SUMPRODUCT((E16:Z16="Renewing")*((E14:Z14="Platinum")+(E14:Z14="Gold")+(E14:Z14="Silver")+(E14:Z14="Bronze")+(E14:Z14="Catastrophic")))=0, 0, ROUND(ROUND(SUMPRODUCT(1+E20:Z20,E34:Z34,E35:Z35,--(E16:Z16="Renewing")*((E14:Z14="Platinum")+(E14:Z14="Gold")+(E14:Z14="Silver")+(E14:Z14="Bronze")+(E14:Z14="Catastrophic")))/SUMPRODUCT(E34:Z34,E35:Z35,--(E16:Z16="Renewing")*((E14:Z14="Platinum")+(E14:Z14="Gold")+(E14:Z14="Silver")+(E14:Z14="Bronze")+(E14:Z14="Catastrophic"))), 4)-1, 4)) -> 0.1138
A24: Worksheet 1 Totals | C24: Section II: Experience Period and Current Plan Level Information
B25: 2.1 | C25: Plan ID (Standard Component ID) | D25: Total | E25: =E13 -> 45636KY0010010 | F25: 45636KY0010013 | G25: 45636KY0010014 | H25: 45636KY0010017 | I25: 45636KY0010029 | J25: 45636KY0010030 | K25: 45636KY0010031 | L25: 45636KY0010032 | M25: 45636KY0010034 | N25: 45636KY0010035 | O25: 45636KY0010037 | P25: 45636KY0010038 | Q25: 45636KY0020014 | R25: 45636KY0020015 | S25: 45636KY0020016 | T25: 45636KY0020017 | U25: 45636KY0020031 | V25: 45636KY0020032 | W25: 45636KY0020034 | X25: 45636KY0020035 | Y25: 45636KY0020037 | Z25: 45636KY0020038
A26: ='Wksh 1 - Market Experience'!E14 -> 252410948.9 | B26: 2.2 | C26: Allowed Claims | D26: =SUM(E26:XFD26) -> 252410948.9 | E26: =133923.836916031 -> 133923.8369 | F26: =11383651.3633188 -> 11383651.36 | G26: =53786530.0557955 -> 53786530.06 | H26: =64100791.1455158 -> 64100791.15 | I26: =42130943.7993607 -> 42130943.8 | J26: =8966208.57605906 -> 8966208.576 | K26: =5838802.60310058 -> 5838802.603 | L26: =0 -> 0 | M26: =0 -> 0 | N26: =0 -> 0 | O26: =0 -> 0 | P26: =0 -> 0 | Q26: =18880936.0561147 -> 18880936.06 | R26: =14956080.5799685 -> 14956080.58 | S26: =5310391.18480998 -> 5310391.185 | T26: =23356024.2846997 -> 23356024.28 | U26: =3566665.45413842 -> 3566665.454 | V26: =0 -> 0 | W26: =0 -> 0 | X26: =0 -> 0 | Y26: =0 -> 0 | Z26: =0 -> 0
A27: ='Wksh 1 - Market Experience'!E15 -> 0 | B27: 2.3 | C27: Reinsurance | D27: =SUM(E27:XFD27) -> 0 | E27: =0 -> 0 | F27: =0 -> 0 | G27: =0 -> 0 | H27: =0 -> 0 | I27: =0 -> 0 | J27: =0 -> 0 | K27: =0 -> 0 | L27: =0 -> 0 | M27: =0 -> 0 | N27: =0 -> 0 | O27: =0 -> 0 | P27: =0 -> 0 | Q27: =0 -> 0 | R27: =0 -> 0 | S27: =0 -> 0 | T27: =0 -> 0 | U27: =0 -> 0 | V27: =0 -> 0 | W27: =0 -> 0 | X27: =0 -> 0 | Y27: =0 -> 0 | Z27: =0 -> 0
B28: 2.4 | C28: Member Cost Sharing | D28: =SUM(E28:XFD28) -> 49124733.17 | E28: =62411.3900434097 -> 62411.39004 | F28: =2734943.01962163 -> 2734943.02 | G28: =7570324.23403425 -> 7570324.234 | H28: =18274892.792148 -> 18274892.79 | I28: =5145963.54640339 -> 5145963.546 | J28: =1152240.43819329 -> 1152240.438 | K28: =799011.52794859 -> 799011.5279 | L28: =0 -> 0 | M28: =0 -> 0 | N28: =0 -> 0 | O28: =0 -> 0 | P28: =0 -> 0 | Q28: =3061507.3342574 -> 3061507.334 | R28: =2130369.01679508 -> 2130369.017 | S28: =678945.958917449 -> 678945.9589 | T28: =6964905.11273798 -> 6964905.113 | U28: =549218.797064608 -> 549218.7971 | V28: =0 -> 0 | W28: =0 -> 0 | X28: =0 -> 0 | Y28: =0 -> 0 | Z28: =0 -> 0
B29: 2.5 | C29: Cost Sharing Reduction | D29: =SUM(E29:XFD29) -> 0 | E29: =0 -> 0 | F29: =0 -> 0 | G29: =0 -> 0 | H29: =0 -> 0 | I29: =0 -> 0 | J29: =0 -> 0 | K29: =0 -> 0 | L29: =0 -> 0 | M29: =0 -> 0 | N29: =0 -> 0 | O29: =0 -> 0 | P29: =0 -> 0 | Q29: =0 -> 0 | R29: =0 -> 0 | S29: =0 -> 0 | T29: =0 -> 0 | U29: =0 -> 0 | V29: =0 -> 0 | W29: =0 -> 0 | X29: =0 -> 0 | Y29: =0 -> 0 | Z29: =0 -> 0
A30: ='Wksh 1 - Market Experience'!E16 -> 203286215.8 | B30: 2.6 | C30: Incurred Claims | D30: =D26-D27-D28-D29 -> 203286215.8 | E30: 71512.44687 | F30: 8648708.344 | G30: 46216205.82 | H30: 45825898.35 | I30: 36984980.25 | J30: 7813968.138 | K30: 5039791.075 | L30: 0 | M30: 0 | N30: 0 | O30: 0 | P30: 0 | Q30: 15819428.72 | R30: 12825711.56 | S30: 4631445.226 | T30: 16391119.17 | U30: 3017446.657 | V30: 0 | W30: 0 | X30: 0 | Y30: 0 | Z30: 0
A31: ='Wksh 1 - Market Experience'!E17 -> 3893286.675 | B31: 2.7 | C31: Risk Adjustment Transfer Amount | D31: =SUM(E31:XFD31) -> 3893286.675 | E31: =29630.7436726511 -> 29630.74367 | F31: =-1413996.3628381 -> -1413996.363 | G31: =3228725.974479 -> 3228725.974 | H31: =-22830907.2770238 -> -22830907.28 | I31: =24686706.3878594 -> 24686706.39 | J31: =2317100.07325473 -> 2317100.073 | K31: =2138566.19343705 -> 2138566.193 | L31: =0 -> 0 | M31: =0 -> 0 | N31: =0 -> 0 | O31: =0 -> 0 | P31: =0 -> 0 | Q31: =264746.215524834 -> 264746.2155 | R31: =2309454.0160036 -> 2309454.016 | S31: =345289.267554155 -> 345289.2676 | T31: =-7610079.93739061 -> -7610079.937 | U31: =428051.380836192 -> 428051.3808 | V31: =0 -> 0 | W31: =0 -> 0 | X31: =0 -> 0 | Y31: =0 -> 0 | Z31: =0 -> 0
A32: ='Wksh 1 - Market Experience'!E18 -> 236471242.7 | B32: 2.8 | C32: Premium | D32: =SUM(E32:XFD32) -> 236471242.7 | E32: =176087.518615973 -> 176087.5186 | F32: =11531963.7610944 -> 11531963.76 | G32: =50684904.5281487 -> 50684904.53 | H32: =75724059.2814252 -> 75724059.28 | I32: =23483434.8727464 -> 23483434.87 | J32: =6782908.96635481 -> 6782908.966 | K32: =4793006.50669968 -> 4793006.507 | L32: =0 -> 0 | M32: =0 -> 0 | N32: =0 -> 0 | O32: =0 -> 0 | P32: =0 -> 0 | Q32: =19052560.360311 -> 19052560.36 | R32: =9833868.12412595 -> 9833868.124 | S32: =4066430.42652994 -> 4066430.427 | T32: =27006664.3287172 -> 27006664.33 | U32: =3335354.03988939 -> 3335354.04 | V32: =0 -> 0 | W32: =0 -> 0 | X32: =0 -> 0 | Y32: =0 -> 0 | Z32: =0 -> 0
A33: ='Wksh 1 - Market Experience'!E19 -> 417460 | B33: 2.9 | C33: Experience Period Member Months | D33: =SUM(E33:XFD33) -> 417460 | E33: =781 -> 781 | F33: =21560 -> 21560 | G33: =69711 -> 69711 | H33: =157866 -> 157866 | I33: =32281 -> 32281 | J33: =9369 -> 9369 | K33: =6634 -> 6634 | L33: =0 -> 0 | M33: =0 -> 0 | N33: =0 -> 0 | O33: =0 -> 0 | P33: =0 -> 0 | Q33: =29912 -> 29912 | R33: =15332 -> 15332 | S33: =6474 -> 6474 | T33: =62172 -> 62172 | U33: =5368 -> 5368 | V33: =0 -> 0 | W33: =0 -> 0 | X33: =0 -> 0 | Y33: =0 -> 0 | Z33: =0 -> 0
B34: 2.10 | C34: Current Enrollment | D34: =SUM(E34:XFD34) -> 27445 | E34: =43 -> 43 | F34: =1182 -> 1182 | G34: =4065 -> 4065 | H34: =10301 -> 10301 | I34: =2343 -> 2343 | J34: =1011 -> 1011 | K34: =0 -> 0 | L34: =322 -> 322 | M34: =0 -> 0 | N34: =0 -> 0 | O34: =0 -> 0 | P34: =0 -> 0 | Q34: =1886 -> 1886 | R34: =1194 -> 1194 | S34: =813 -> 813 | T34: =4037 -> 4037 | U34: =0 -> 0 | V34: =248 -> 248 | W34: =0 -> 0 | X34: =0 -> 0 | Y34: =0 -> 0 | Z34: =0 -> 0
B35: 2.11 | C35: Current Premium PMPM | D35: =SUMPRODUCT(E35:XFD35,E34:XFD34)/D34 -> 595.9500581 | E35: =225.925813953488 -> 225.925814 | F35: =552.770080072178 -> 552.7700801 | G35: =779.944843336149 -> 779.9448433 | H35: =511.730224995065 -> 511.730225 | I35: =749.167950140869 -> 749.1679501 | J35: =712.629507926568 -> 712.6295079 | K35: =0 -> 0 | L35: =494.953571428571 -> 494.9535714 | M35: =0 -> 0 | N35: =0 -> 0 | O35: =0 -> 0 | P35: =0 -> 0 | Q35: =680.620619267271 -> 680.6206193 | R35: =657.760290955798 -> 657.760291 | S35: =646.646181907612 -> 646.6461819 | T35: =471.621654362582 -> 471.6216544 | U35: =0 -> 0 | V35: =472.303364737551 -> 472.3033647 | W35: =0 -> 0 | X35: =0 -> 0 | Y35: =0 -> 0 | Z35: =0 -> 0
B36: 2.12 | C36: Loss Ratio | D36: =D30/(D31+D32) -> 0.8457413258 | E36: 0.3476232303 | F36: 0.854787133 | G36: 0.8572267419 | H36: 0.8663862261 | I36: 0.7677988747 | J36: 0.8586769644 | K36: 0.7270775758 | Q36: 0.8189251778 | R36: 1.056194624 | S36: 1.049804962 | T36: 0.8450518319 | U36: 0.8017862334
C37: Per Member Per Month
B38: 2.13 | C38: Allowed Claims | D38: =D26/D33 -> 604.6350523 | E38: 171.477384 | F38: 527.9986718 | G38: 771.5644598 | H38: 406.0455776 | I38: 1305.131309 | J38: 957.0080666 | K38: 880.1330424 | Q38: 631.2161024 | R38: 975.481384 | S38: 820.2643165 | T38: 375.6678937 | U38: 664.4309713
B39: 2.14 | C39: Reinsurance | D39: =D27/D33 -> 0 | E39: 0 | F39: 0 | G39: 0 | H39: 0 | I39: 0 | J39: 0 | K39: 0 | Q39: 0 | R39: 0 | S39: 0 | T39: 0 | U39: 0
B40: 2.15 | C40: Member Cost Sharing | D40: =D28/D33 -> 117.6753058 | E40: 79.91215114 | F40: 126.8526447 | G40: 108.5958347 | H40: 115.7620564 | I40: 159.4115283 | J40: 122.9843567 | K40: 120.4418945 | Q40: 102.3504725 | R40: 138.9491923 | S40: 104.8727153 | T40: 112.0263963 | U40: 102.3134868
B41: 2.16 | C41: Cost Sharing Reduction | D41: =D29/D33 -> 0 | E41: 0 | F41: 0 | G41: 0 | H41: 0 | I41: 0 | J41: 0 | K41: 0 | Q41: 0 | R41: 0 | S41: 0 | T41: 0 | U41: 0
B42: 2.17 | C42: Incurred Claims | D42: =D30/D33 -> 486.9597465 | E42: 91.56523287 | F42: 401.1460271 | G42: 662.9686251 | H42: 290.2835212 | I42: 1145.719781 | J42: 834.0237099 | K42: 759.6911479 | Q42: 528.8656299 | R42: 836.5321917 | S42: 715.3916012 | T42: 263.6414973 | U42: 562.1174846
B43: 2.18 | C43: Risk Adjustment Transfer Amount | D43: =D31/D33 -> 9.326131067 | E43: 37.93949254 | F43: -65.58424688 | G43: 46.31587518 | H43: -144.6220673 | I43: 764.7441649 | J43: 247.3156231 | K43: 322.3645151 | Q43: 8.850836304 | R43: 150.6296645 | S43: 53.33476484 | T43: -122.4036534 | U43: 79.74131536
B44: 2.19 | C44: Premium | D44: =D32/D33 -> 566.452457 | E44: 225.4641724 | F44: 534.8777255 | G44: 727.0718327 | H44: 479.6730093 | I44: 727.4692504 | J44: 723.9736329 | K44: 722.4911828 | Q44: 636.953743 | R44: 641.394999 | S44: 628.1171496 | T44: 434.3862885 | U44: 621.3401714
C46: Section III: Plan Adjustment Factors
B47: 3.1 | C47: Plan ID (Standard Component ID) | E47: =E13 -> 45636KY0010010 | F47: 45636KY0010013 | G47: 45636KY0010014 | H47: 45636KY0010017 | I47: 45636KY0010029 | J47: 45636KY0010030 | K47: 45636KY0010031 | L47: 45636KY0010032 | M47: 45636KY0010034 | N47: 45636KY0010035 | O47: 45636KY0010037 | P47: 45636KY0010038 | Q47: 45636KY0020014 | R47: 45636KY0020015 | S47: 45636KY0020016 | T47: 45636KY0020017 | U47: 45636KY0020031 | V47: 45636KY0020032 | W47: 45636KY0020034 | X47: 45636KY0020035 | Y47: 45636KY0020037 | Z47: 45636KY0020038
B48: 3.2 | C48: Market Adjusted Index Rate | E48: ='Wksh 1 - Market Experience'!F46 -> 699.739773
B49: 3.3 | C49: AV and Cost Sharing Design of Plan | E49: 0 | F49: 0 | G49: 0.8402277193 | H49: 0.6552041392 | I49: 0.9829398251 | J49: 0.8544467891 | K49: 0 | L49: 0 | M49: 0.8716258554 | N49: 1.07627953 | O49: 0.8236901243 | P49: 1.046801672 | Q49: 0.8404899198 | R49: 0.982269751 | S49: 0.8547092199 | T49: 0.6555975182 | U49: 0 | V49: 0 | W49: 0.8718890226 | X49: 1.075543795 | Y49: 0.8239528774 | Z49: 1.04607464
B50: 3.4 | C50: Provider Network Adjustment | E50: 0 | F50: 0 | G50: 1 | H50: 1 | I50: 1 | J50: 1 | K50: 0 | L50: 0 | M50: 1 | N50: 1 | O50: 1 | P50: 1 | Q50: 1 | R50: 1 | S50: 1 | T50: 1 | U50: 0 | V50: 0 | W50: 1 | X50: 1 | Y50: 1 | Z50: 1
B51: 3.5 | C51: Benefits in Addition to EHB | E51: 0 | F51: 0 | G51: 1 | H51: 1 | I51: 1 | J51: 1 | K51: 0 | L51: 0 | M51: 1 | N51: 1 | O51: 1 | P51: 1 | Q51: 1.014757369 | R51: 1.013771342 | S51: 1.014512332 | T51: 1.018614891 | U51: 0 | V51: 0 | W51: 1.014226927 | X51: 1.012579324 | Y51: 1.015052979 | Z51: 1.012932858
C52: Administrative Costs
B53: 3.6 | C53: Administrative Expense | E53: 0 | F53: 0 | G53: 0.1397348038 | H53: 0.1679503234 | I53: 0.1321929759 | J53: 0.1378736012 | K53: 0 | L53: 0 | M53: 0.1356949726 | N53: 0.1228860803 | O53: 0.1419688159 | P53: 0.1256683692 | Q53: 0.1380886318 | R53: 0.1306064301 | S53: 0.1362741217 | T53: 0.165549343 | U53: 0 | V53: 0 | W53: 0.1341493736 | X53: 0.1215242155 | Y53: 0.140265858 | Z53: 0.1242397201
B54: 3.7 | C54: Taxes and Fees | E54: 0 | F54: 0 | G54: 0.01064633579 | H54: 0.01072606324 | I54: 0.01062502515 | J54: 0.01064107666 | K54: 0 | L54: 0 | M54: 0.0106349206 | N54: 0.01059872703 | O54: 0.01065264834 | P54: 0.01060658883 | Q54: 0.01064227023 | R54: 0.01061127934 | S54: 0.01063714085 | T54: 0.01072200615 | U54: 0 | V54: 0 | W54: 0.01063113958 | X54: 0.01058582178 | Y54: 0.01064843484 | Z54: 0.01059331812
B55: 3.8 | C55: Profit & Risk Load | E55: 0 | F55: 0 | G55: 0.05185898109 | H55: 0.05178630037 | I55: 0.05187840818 | J55: 0.05186377538 | K55: 0 | L55: 0 | M55: 0.05186938734 | N55: 0.05190238192 | O55: 0.05185322647 | P55: 0.05189521499 | Q55: 0.05180837568 | R55: 0.05274947597 | S55: 0.05181325546 | T55: 0.05153721722 | U55: 0 | V55: 0 | W55: 0.05181849032 | X55: 0.05275361883 | Y55: 0.05180159721 | Z55: 0.0527631682
B56: 3.9 | C56: Catastrophic Adjustment | E56: 0 | F56: 0 | G56: 1 | H56: 1 | I56: 1 | J56: 1 | K56: 0 | L56: 0 | M56: 1 | N56: 1 | O56: 1 | P56: 1 | Q56: 1 | R56: 1 | S56: 1 | T56: 1 | U56: 0 | V56: 0 | W56: 1 | X56: 1 | Y56: 1 | Z56: 1
B57: 3.10 | C57: Plan Adjusted Index Rate | E57: =($E$48*PRODUCT(E49:E51)*E56)/(1-SUM(E53:E55)) -> 0 | F57: 0 | G57: 736.9896242 | H57: 595.7766933 | I57: 854.0904299 | J57: 747.7167225 | K57: 0 | L57: 0 | M57: 760.6768907 | N57: 924.5074271 | O57: 724.5133924 | P57: 902.2688503 | Q57: 746.5074587 | R57: 864.4793374 | S57: 757.234557 | T57: 605.1442371 | U57: 0 | V57: 0 | W57: 770.1947252 | X57: 934.8963346 | Y57: 734.0312269 | Z57: 912.6577578
B59: 3.11 | C59: Age Calibration Factor | D59: 0.546834825 | E59: =IF(D59<>"", D59, "") -> 0.546834825
B60: 3.12 | C60: Geographic Calibration Factor | D60: 1 | E60: =IF(D60<>"", D60, "") -> 1
B61: 3.13 | C61: Tobacco Calibration Factor | D61: 0.996377893 | E61: =IF(D61<>"", D61, "") -> 0.996377893
B62: 3.14 | C62: Calibrated Plan Adjusted Index Rate | E62: =E57*(PRODUCT($E$59:$E$61)) -> 0 | F62: 0 | G62: 401.5518411 | H62: 324.6113923 | I62: 465.3546988 | J62: 407.3965449 | K62: 0 | L62: 0 | M62: 414.4579461 | N62: 503.7216906 | O62: 394.7541147 | P62: 491.6049101 | Q62: 406.7376725 | R62: 471.015138 | S62: 412.5823764 | T62: 329.7153373 | U62: 0 | V62: 0 | W62: 419.6437775 | X62: 509.3821298 | Y62: 399.9399461 | Z62: 497.2653493
C64: Section IV: Projected Plan Level Information
B65: 4.1 | C65: Plan ID (Standard Component ID) | D65: Total | E65: =E13 -> 45636KY0010010 | F65: 45636KY0010013 | G65: 45636KY0010014 | H65: 45636KY0010017 | I65: 45636KY0010029 | J65: 45636KY0010030 | K65: 45636KY0010031 | L65: 45636KY0010032 | M65: 45636KY0010034 | N65: 45636KY0010035 | O65: 45636KY0010037 | P65: 45636KY0010038 | Q65: 45636KY0020014 | R65: 45636KY0020015 | S65: 45636KY0020016 | T65: 45636KY0020017 | U65: 45636KY0020031 | V65: 45636KY0020032 | W65: 45636KY0020034 | X65: 45636KY0020035 | Y65: 45636KY0020037 | Z65: 45636KY0020038
B66: 4.2 | C66: Allowed Claims | D66: =SUM(E66:XFD66) -> 221133179.1 | E66: =0 -> 0 | F66: =0 -> 0 | G66: =30639997.8322372 -> 30639997.83 | H66: =54034898.1515538 -> 54034898.15 | I66: =11213212.8288047 -> 11213212.83 | J66: =3295373.16581877 -> 3295373.166 | K66: =0 -> 0 | L66: =0 -> 0 | M66: =18591683.4802821 -> 18591683.48 | N66: =3728022.58627747 -> 3728022.586 | O66: =18209405.2456071 -> 18209405.25 | P66: =1687313.23465954 -> 1687313.235 | Q66: =12188133.2108432 -> 12188133.21 | R66: =7083619.5001177 -> 7083619.5 | S66: =2224368.39030125 -> 2224368.39 | T66: =29485854.4891726 -> 29485854.49 | U66: =0 -> 0 | V66: =0 -> 0 | W66: =13288258.9587316 -> 13288258.96 | X66: =3477425.12951737 -> 3477425.13 | Y66: =10848679.5824675 -> 10848679.58 | Z66: =1136933.32691139 -> 1136933.327
B67: 4.3 | C67: Reinsurance | D67: =SUM(E67:XFD67) -> 0 | E67: =0 -> 0 | F67: =0 -> 0 | G67: =0 -> 0 | H67: =0 -> 0 | I67: =0 -> 0 | J67: =0 -> 0 | K67: =0 -> 0 | L67: =0 -> 0 | M67: =0 -> 0 | N67: =0 -> 0 | O67: =0 -> 0 | P67: =0 -> 0 | Q67: =0 -> 0 | R67: =0 -> 0 | S67: =0 -> 0 | T67: =0 -> 0 | U67: =0 -> 0 | V67: =0 -> 0 | W67: =0 -> 0 | X67: =0 -> 0 | Y67: =0 -> 0 | Z67: =0 -> 0
B68: 4.4 | C68: Member Cost Sharing | D68: =SUM(E68:XFD68) -> 46779924.69 | E68: =0 -> 0 | F68: =0 -> 0 | G68: =5150367.35078885 -> 5150367.351 | H68: =16535429.0483974 -> 16535429.05 | I68: =1872160.40475588 -> 1872160.405 | J68: =518218.211166968 -> 518218.2112 | K68: =0 -> 0 | L68: =0 -> 0 | M68: =2538699.29035605 -> 2538699.29 | N68: =404443.761356423 -> 404443.7614 | O68: =3037539.90075291 -> 3037539.901 | P68: =195294.1972733 -> 195294.1973 | Q68: =2023715.40477748 -> 2023715.405 | R68: =1169174.07586808 -> 1169174.076 | S68: =345542.325936831 -> 345542.3259 | T68: =8906674.79481501 -> 8906674.795 | U68: =0 -> 0 | V68: =0 -> 0 | W68: =1792388.59158595 -> 1792388.592 | X68: =373065.782700562 -> 373065.7827 | Y68: =1787111.71399466 -> 1787111.714 | Z68: =130099.831189143 -> 130099.8312
B69: 4.5 | C69: Cost Sharing Reduction | D69: =SUM(E69:XFD69) -> 0 | E69: =0 -> 0 | F69: =0 -> 0 | G69: =0 -> 0 | H69: =0 -> 0 | I69: =0 -> 0 | J69: =0 -> 0 | K69: =0 -> 0 | L69: =0 -> 0 | M69: =0 -> 0 | N69: =0 -> 0 | O69: =0 -> 0 | P69: =0 -> 0 | Q69: =0 -> 0 | R69: =0 -> 0 | S69: =0 -> 0 | T69: =0 -> 0 | U69: =0 -> 0 | V69: =0 -> 0 | W69: =0 -> 0 | X69: =0 -> 0 | Y69: =0 -> 0 | Z69: =0 -> 0
B70: 4.6 | C70: Incurred Claims | D70: =D66-D67-D68-D69 -> 174353254.4 | E70: 0 | F70: 0 | G70: 25489630.48 | H70: 37499469.1 | I70: 9341052.424 | J70: 2777154.955 | K70: 0 | L70: 0 | M70: 16052984.19 | N70: 3323578.825 | O70: 15171865.34 | P70: 1492019.037 | Q70: 10164417.81 | R70: 5914445.424 | S70: 1878826.064 | T70: 20579179.69 | U70: 0 | V70: 0 | W70: 11495870.37 | X70: 3104359.347 | Y70: 9061567.868 | Z70: 1006833.496
B71: 4.7 | C71: Risk Adjustment Transfer Amount | D71: =SUM(E71:XFD71) -> 2551774.138 | E71: =0 -> 0 | F71: =0 -> 0 | G71: =369758.495004741 -> 369758.495 | H71: =563626.313263959 -> 563626.3133 | I71: =134252.383566802 -> 134252.3836 | J71: =40193.6183008148 -> 40193.6183 | K71: =0 -> 0 | L71: =0 -> 0 | M71: =231711.665854202 -> 231711.6659 | N71: =47229.3441583542 -> 47229.34416 | O71: =220695.813365096 -> 220695.8134 | P71: =21273.8147250562 -> 21273.81473 | Q71: =147138.251879428 -> 147138.2519 | R71: =84928.3690620582 -> 84928.36906 | S71: =27136.8338947327 -> 27136.83389 | T71: =308262.957022896 -> 308262.957 | U71: =0 -> 0 | V71: =0 -> 0 | W71: =165607.70606222 -> 165607.7061 | X71: =44086.2197643821 -> 44086.21976 | Y71: =131526.508489631 -> 131526.5085 | Z71: =14345.8438432866 -> 14345.84384
B72: 4.8 | C72: Premium | D72: =SUM(E72:XFD72) -> 217304791.2 | E72: =0 -> 0 | F72: =0 -> 0 | G72: =31488011.1657615 -> 31488011.17 | H72: =47997468.3073744 -> 47997468.31 | I72: =11432707.0503879 -> 11432707.05 | J72: =3422820.89241029 -> 3422820.892 | K72: =0 -> 0 | L72: =0 -> 0 | M72: =19732175.5151582 -> 19732175.52 | N72: =4021971.46597207 -> 4021971.466 | O72: =18794084.0558318 -> 18794084.06 | P72: =1811642.26015232 -> 1811642.26 | Q72: =12530045.9101843 -> 12530045.91 | R72: =7232356.98285095 -> 7232356.983 | S72: =2310927.105731 -> 2310927.106 | T72: =26251154.6424461 -> 26251154.64 | U72: =0 -> 0 | V72: =0 -> 0 | W72: =14102873.546033 -> 14102873.55 | X72: =3754308.28216476 -> 3754308.282 | Y72: =11200576.116208 -> 11200576.12 | Z72: =1221667.91898557 -> 1221667.919
B73: 4.9 | C73: Projected Member Months | D73: =SUM(E73:XFD73) -> 309998 | E73: =0 -> 0 | F73: =0 -> 0 | G73: =42725 -> 42725 | H73: =80563 -> 80563 | I73: =13386 -> 13386 | J73: =4578 -> 4578 | K73: =0 -> 0 | L73: =0 -> 0 | M73: =25940 -> 25940 | N73: =4350 -> 4350 | O73: =25940 -> 25940 | P73: =2008 -> 2008 | Q73: =16785 -> 16785 | R73: =8366 -> 8366 | S73: =3052 -> 3052 | T73: =43380 -> 43380 | U73: =0 -> 0 | V73: =0 -> 0 | W73: =18311 -> 18311 | X73: =4016 -> 4016 | Y73: =15259 -> 15259 | Z73: =1339 -> 1339
B74: 4.10 | C74: Loss Ratio | D74: =D70/(D71+D72) -> 0.7930318303 | G74: 0.8001071874 | H74: 0.7722121875 | I74: 0.8075633426 | J74: 0.8019472474 | M74: 0.8041011274 | N74: 0.8167645147 | O74: 0.7978985531 | P74: 0.8140138317 | Q74: 0.8017882896 | R74: 0.8082841026 | S74: 0.8035819862 | T74: 0.774835503 | W74: 0.8056828309 | X74: 0.8172819714 | Y74: 0.7996369402 | Z74: 0.8145811366
C75: Per Member Per Month
B76: 4.11 | C76: Allowed Claims | D76: =D66/D73 -> 713.337438 | G76: 717.1444782 | H76: 670.7160626 | I76: 837.6821178 | J76: 719.8281271 | M76: 716.7187155 | N76: 857.0166865 | O76: 701.981698 | P76: 840.2954356 | Q76: 726.1324522 | R76: 846.7152164 | S76: 728.8231947 | T76: 679.7107997 | W76: 725.6981573 | X76: 865.8927115 | Y76: 710.9692367 | Z76: 849.0913569
B77: 4.12 | C77: Reinsurance | D77: =D67/D73 -> 0 | G77: 0 | H77: 0 | I77: 0 | J77: 0 | M77: 0 | N77: 0 | O77: 0 | P77: 0 | Q77: 0 | R77: 0 | S77: 0 | T77: 0 | W77: 0 | X77: 0 | Y77: 0 | Z77: 0
B78: 4.13 | C78: Member Cost Sharing | D78: =D68/D73 -> 150.9039564 | G78: 120.5469245 | H78: 205.2484273 | I78: 139.859585 | J78: 113.1975123 | M78: 97.86812993 | N78: 92.97557732 | O78: 117.0986855 | P78: 97.25806637 | Q78: 120.5668993 | R78: 139.7530571 | S78: 113.2183244 | T78: 205.3175379 | W78: 97.88589327 | X78: 92.89486621 | Y78: 117.1185342 | Z78: 97.16193517
B79: 4.14 | C79: Cost Sharing Reduction | D79: =D69/D73 -> 0 | G79: 0 | H79: 0 | I79: 0 | J79: 0 | M79: 0 | N79: 0 | O79: 0 | P79: 0 | Q79: 0 | R79: 0 | S79: 0 | T79: 0 | W79: 0 | X79: 0 | Y79: 0 | Z79: 0
B80: 4.15 | C80: Incurred Claims | D80: =D70/D73 -> 562.4334816 | G80: 596.5975537 | H80: 465.4676353 | I80: 697.8225328 | J80: 606.6306148 | M80: 618.8505856 | N80: 764.0411092 | O80: 584.8830125 | P80: 743.0373692 | Q80: 605.5655529 | R80: 706.9621592 | S80: 615.6048704 | T80: 474.3932617 | W80: 627.8122641 | X80: 772.9978453 | Y80: 593.8507024 | Z80: 751.9294217
B81: 4.16 | C81: Risk Adjustment Transfer Amount | D81: =D71/D73 -> 8.231582585 | G81: 8.654382563 | H81: 6.996093905 | I81: 10.02931298 | J81: 8.779733137 | M81: 8.932600842 | N81: 10.8573205 | O81: 8.507934208 | P81: 10.59452925 | Q81: 8.766056114 | R81: 10.15160998 | S81: 8.891492102 | T81: 7.106107815 | W81: 9.044165041 | X81: 10.97764436 | Y81: 8.619602103 | Z81: 10.71384902
B82: 4.17 | C82: Premium | D82: =D72/D73 -> 700.98772 | G82: 736.9926546 | H82: 595.7755832 | I82: 854.0794151 | J82: 747.6672985 | M82: 760.685255 | N82: 924.5911416 | O82: 724.5213591 | P82: 902.212281 | Q82: 746.5025862 | R82: 864.4940214 | S82: 757.1845038 | T82: 605.1441826 | W82: 770.1858744 | X82: 934.8377197 | Y82: 734.0308091 | Z82: 912.3733525

Sheet Wksh 3 - Rating Areas
A1: Rating Area Data Collection [assistive technology users, please reference cell A2 for instructions] | C1: Specify the total number of Rating Areas in your State by selecting the Create Rating Areas button or Ctrl + Shift + R.
A2: Press TAB and directional arrow keys to read through the document. If macros are disabled, press and hold the ALT key and press the F, then I, and then N key. After that, select the Enable All Content option by pressing enter. (note that you can also press the C key to select "Enable All Content") Instructions can be found in cells C1 through C4. If screen reader fails to announce a cell after performing a dropdown selection, please press F2 and then ESC to force the screen reader to resume. | C2: Select only the Rating Areas you are offering plans within and add a factor for each area.
C3: To validate, select the Validate button or Ctrl + Shift + I.
C4: To finalize, select the Finalize button or Ctrl + Shift + F.
A5: Rating Area | B5: Rating Factor
A6: Rating Area 1 | B6: 1.007
A7: Rating Area 2 | B7: 0.963
A8: Rating Area 3 | B8: 1.001
A9: Rating Area 4 | B9: 0.993
A10: Rating Area 5 | B10: 0.977
A11: Rating Area 6 | B11: 1.281
A12: Rating Area 7 | B12: 0.985
A13: Rating Area 8 | B13: 0.937

Sheet PlanTemplate (hidden)
A1: REBUILD | C1: Product-Plan Data Collection
C3: Company Legal Name: | D3: =IF('Wksh 1 - Market Experience'!C3<>"", 'Wksh 1 - Market Experience'!C3,"") -> CareSource Kentucky Co. | N3: State: | O3: =IF('Wksh 1 - Market Experience'!E4="","",'Wksh 1 - Market Experience'!E4) -> KY
C4: HIOS Issuer ID: | D4: =IF('Wksh 1 - Market Experience'!C4<>"", 'Wksh 1 - Market Experience'!C4,"") -> 45636 | N4: Market: | O4: =IF('Wksh 1 - Market Experience'!E5="","",'Wksh 1 - Market Experience'!E5) -> Individual
C5: Effective Date of Rate Change(s): | D5: =IF('Wksh 1 - Market Experience'!#REF!<>"", 'Wksh 1 - Market Experience'!#REF!,"") -> 
C7: Product/Plan Level Calculations
B9: Field # | C9: Section I: General Product and Plan Information
B10: 1.1 | C10: Product Name | K10: Rating Area 1 | L10: AL | M10: New | N10: Platinum | O10: Yes
B11: 1.2 | C11: Product ID | K11: Rating Area 2 | L11: AK | M11: Renewing | N11: Gold | O11: No
B12: 1.3 | C12: Plan Name | K12: Rating Area 3 | L12: AZ | M12: Terminated | N12: Silver
B13: 1.4 | C13: Plan ID (Standard Component ID) | K13: Rating Area 4 | L13: AR | N13: Bronze
B14: 1.5 | C14: Metal | K14: Rating Area 5 | L14: CA | N14: Catastrophic
B15: 1.6 | C15: AV Metal Value | K15: Rating Area 6 | L15: CO | N15: Not Applicable
B16: 1.7 | C16: Plan Category | K16: Rating Area 7 | L16: CT
B17: 1.8 | C17: Plan Type | K17: Rating Area 8 | L17: DC
B18: 1.9 | C18: Exchange Plan? | L18: DE
B19: 1.10 | C19: Effective Date of Proposed Rates | L19: FL
B20: 1.11 | C20: Cumulative Rate Change % (over 12 mos prior) | L20: GA
B21: 1.12 | C21: Product Rate Increase % | L21: HI
B22: 1.13 | C22: Submission Level Rate Increase % | L22: ID
L23: IL
C24: Section II: Experience Period and Current Plan Level Information | L24: IN
B25: 2.1 | C25: Plan ID (Standard Component ID) | D25: Total | E25: =IF(E13<>"",E13,"") ->  | L25: IA
B26: 2.2 | C26: Allowed Claims | D26: =SUM(E26:XFD26) -> 0 | L26: KS
B27: 2.3 | C27: Reinsurance | D27: =SUM(E27:XFD27) -> 0 | L27: KY
B28: 2.4 | C28: Member Cost Sharing | D28: =SUM(E28:XFD28) -> 0 | L28: LA
B29: 2.5 | C29: Cost Sharing Reduction | D29: =SUM(E29:XFD29) -> 0 | L29: ME
B30: 2.6 | C30: Incurred Claims | D30: =D26-D27-D28-D29 -> 0 | E30: =E26-E27-E28-E29 -> 0 | L30: MD
B31: 2.7 | C31: Risk Adjustment Transfer Amount | D31: =SUM(E31:XFD31) -> 0 | L31: MA
B32: 2.8 | C32: Premium | D32: =SUM(E32:XFD32) -> 0 | L32: MI
B33: 2.9 | C33: Experience Period Member Months | D33: =SUM(E33:XFD33) -> 0 | L33: MN
B34: 2.10 | C34: Current Enrollment | D34: =SUM(E34:XFD34) -> 0 | L34: MS
B35: 2.11 | C35: Current Premium PMPM | D35: =SUMPRODUCT(E35:XFD35,E34:XFD34)/D34 ->  | L35: MO
B36: 2.12 | C36: Loss Ratio | D36: =D30/(D31+D32) ->  | E36: =E30/(E31+E32) ->  | L36: MT
C37: Per Member Per Month | L37: NE
B38: 2.13 | C38: Allowed Claims | D38: =D26/D33 ->  | E38: =E26/E33 ->  | L38: NV
B39: 2.14 | C39: Reinsurance | D39: =D27/D33 ->  | E39: =E27/E33 ->  | L39: NH
B40: 2.15 | C40: Member Cost Sharing | D40: =D28/D33 ->  | E40: =E28/E33 ->  | L40: NJ
B41: 2.16 | C41: Cost Sharing Reduction | D41: =D29/D33 ->  | E41: =E29/E33 ->  | L41: NM
B42: 2.17 | C42: Incurred Claims | D42: =D30/D33 ->  | E42: =E30/E33 ->  | L42: NY
B43: 2.18 | C43: Risk Adjustment Transfer Amount | D43: =D31/D33 ->  | E43: =E31/E33 ->  | L43: NC
B44: 2.19 | C44: Premium | D44: =D32/D33 ->  | E44: =E32/E33 ->  | L44: ND
L45: OH
C46: Section III: Plan Adjustment Factors | L46: OK
B47: 3.1 | C47: Plan ID (Standard Component ID) | E47: =IF(E13<>"",E13,"") ->  | L47: OR
B48: 3.2 | C48: Market Adjusted Index Rate | E48: ='Wksh 1 - Market Experience'!F46 -> 699.739773 | L48: PA
B49: 3.3 | C49: AV and Cost Sharing Design of Plan | L49: RI
B50: 3.4 | C50: Provider Network Adjustment | L50: SC
B51: 3.5 | C51: Benefits in Addition to EHB | L51: SD
C52: Administrative Costs | L52: TN
B53: 3.6 | C53: Administrative Expense | L53: TX
B54: 3.7 | C54: Taxes and Fees | L54: UT
B55: 3.8 | C55: Profit & Risk Load | L55: VT
B56: 3.9 | C56: Catastrophic Adjustment | L56: VA
B57: 3.10 | C57: Plan Adjusted Index Rate | E57: =($E$48*PRODUCT(E49:E51)*E56)/(1-SUM(E53:E55)) -> 0 | L57: WA
L58: WV
B59: 3.11 | C59: Age Calibration Factor | E59: =IF(D59<>"", D59, "") ->  | L59: WI
B60: 3.12 | C60: Geographic Calibration Factor | E60: =IF(D60<>"", D60, "") ->  | L60: WY
B61: 3.13 | C61: Tobacco Calibration Factor | E61: =IF(D61<>"", D61, "") -> 
B62: 3.14 | C62: Calibrated Plan Adjusted Index Rate | E62: =E57*(PRODUCT($E$59:$E$61)) -> 0
C64: Section IV: Projected Plan Level Information
B65: 4.1 | C65: Plan ID (Standard Component ID) | D65: Total | E65: =IF(E13<>"",E13,"") -> 
B66: 4.2 | C66: Allowed Claims | D66: =SUM(E66:XFD66) -> 0
B67: 4.3 | C67: Reinsurance | D67: =SUM(E67:XFD67) -> 0
B68: 4.4 | C68: Member Cost Sharing | D68: =SUM(E68:XFD68) -> 0
B69: 4.5 | C69: Cost Sharing Reduction | D69: =SUM(E69:XFD69) -> 0
B70: 4.6 | C70: Incurred Claims | D70: =D66-D67-D68-D69 -> 0 | E70: =E66-E67-E68-E69 -> 0
B71: 4.7 | C71: Risk Adjustment Transfer Amount | D71: =SUM(E71:XFD71) -> 0
B72: 4.8 | C72: Premium | D72: =SUM(E72:XFD72) -> 0
B73: 4.9 | C73: Projected Member Months | D73: =SUM(E73:XFD73) -> 0
B74: 4.10 | C74: Loss Ratio | D74: =D70/(D71+D72) ->  | E74: =E70/(E71+E72) -> 
C75: Per Member Per Month
B76: 4.11 | C76: Allowed Claims | D76: =D66/D73 ->  | E76: =E66/E73 -> 
B77: 4.12 | C77: Reinsurance | D77: =D67/D73 ->  | E77: =E67/E73 -> 
B78: 4.13 | C78: Member Cost Sharing | D78: =D68/D73 ->  | E78: =E68/E73 -> 
B79: 4.14 | C79: Cost Sharing Reduction | D79: =D69/D73 ->  | E79: =E69/E73 -> 
B80: 4.15 | C80: Incurred Claims | D80: =D70/D73 ->  | E80: =E70/E73 -> 
B81: 4.16 | C81: Risk Adjustment Transfer Amount | D81: =D71/D73 ->  | E81: =E71/E73 -> 
B82: 4.17 | C82: Premium | D82: =D72/D73 ->  | E82: =E72/E73 -> 
